bitfinex/quotes_SOLUSD_20240714
["timestamp","ask_amount","ask_price","bid_price","bid_amount"]
[1720920076984,11.3,144.46,144.39,15.5216]
[1720920077199,11.3,144.47,144.42,11.3]
[1720920077997,20.0,144.49,144.42,11.3]
[1720920078211,22.34436836,144.5,144.43,12.68460537]
[1720920078490,2.34436836,144.5,144.44,1.38447319]
[1720920078704,2.34436836,144.5,144.41,11.3]
[1720920078705,11.3,144.5,144.45,11.3]
[1720920078906,21.8691,144.54,144.45,11.3]
[1720920079130,11.3,144.51,144.46,11.3]
[1720920079286,11.3,144.5,144.45,11.3]
[1720920079614,11.3,144.5,144.46,1.38429245]
[1720920079775,21.8691,144.54,144.43,6.45]
[1720920079984,11.3,144.51,144.47,11.3]
[1720920080513,0.8473678,144.55,144.47,11.3]
[1720920080714,0.8473678,144.55,144.48,1.38409507]
[1720920080885,0.8473678,144.55,144.45,1.3839992]
[1720920081200,0.8473678,144.55,144.46,1.38399585]
[1720920081385,0.8473678,144.55,144.45,65.84]
[1720920081587,0.8473678,144.55,144.45,45.0]
[1720920082118,0.8473678,144.55,144.46,1.3840639]
[1720920082322,0.8473678,144.55,144.46,45.0]
[1720920082793,0.8473678,144.55,144.45,45.0]
[1720920083509,0.8473678,144.55,144.46,1.38395234]
[1720920084009,0.8473678,144.55,144.46,21.38395234]
[1720920084204,0.8473678,144.55,144.47,45.0]
[1720920084506,0.8473678,144.55,144.48,1.3838809]
[1720920084809,0.8473678,144.55,144.49,1.38386893]
[1720920085210,0.8473678,144.55,144.5,21.9711]
[1720920085413,0.8473678,144.55,144.51,46.38349038]
[1720920085595,0.8473678,144.55,144.52,1.3834453]
[1720920086094,0.8473678,144.55,144.51,65.84]
[1720920086433,0.8473678,144.55,144.51,45.0]
[1720920086920,0.8473678,144.55,144.52,1.38342142]
[1720920089019,0.8473678,144.55,144.53,43.44]
[1720920089218,0.8473678,144.55,144.54,45.0]
[1720920092831,0.8473678,144.55,144.51,1.38324562]
[1720920093032,0.8473678,144.55,144.47,1.38386516]
[1720920094538,0.8473678,144.55,144.47,21.38386516]
[1720920095915,0.8473678,144.55,144.48,45.0]
[1720920096121,0.8473678,144.55,144.49,1.38377946]
[1720920096944,0.8473678,144.55,144.51,22.6]
[1720920097253,0.8473678,144.55,144.52,1.38339612]
[1720920097544,0.8473678,144.55,144.52,61.1457]
[1720920097923,0.8473678,144.55,144.53,1.38329401]
[1720920098147,0.8473678,144.55,144.48,38.7457]
[1720920098452,0.8473678,144.55,144.48,16.1457]
[1720920098643,0.8473678,144.55,144.49,1.38360872]
[1720920099825,0.8473678,144.55,144.48,16.1457]
[1720920100246,0.8473678,144.55,144.49,1.3837732]
[1720920100827,0.8473678,144.55,144.48,16.1457]
[1720920101024,0.8473678,144.55,144.52,20.84]
[1720920101341,0.8473678,144.55,144.51,22.6]
[1720920101542,0.8473678,144.55,144.5,43.4357]
[1720920101726,0.8473678,144.55,144.52,6.9193]
[1720920102248,0.8473678,144.55,144.51,6.9196]
[1720920102626,0.8473678,144.55,144.52,46.38356199]
[1720920103026,0.8473678,144.55,144.52,1.38356199]
[1720920103238,0.8473678,144.55,144.52,6.9191]
[1720920103630,0.8473678,144.55,144.51,6.9199]
[1720920103824,0.8473678,144.55,144.52,1.38352766]
[1720920104229,0.8473678,144.55,144.53,6.9186]
[1720920104545,0.8473678,144.55,144.54,6.9185]
[1720920105044,0.8473678,144.55,144.54,53.30174545]
[1720920105425,0.8473678,144.55,144.54,73.30174545]
[1720920109052,0.8473678,144.55,144.54,116.74174545]
[1720920109842,15.3164,144.68,144.56,20.84]
[1720920110054,15.3164,144.68,144.63,6.914]
[1720920110236,15.3164,144.68,144.58,43.44]
[1720920110438,15.3164,144.68,144.59,85.84]
[1720920110643,15.3164,144.68,144.63,6.9141]
[1720920111147,15.3164,144.68,144.62,6.9145]
[1720920112350,15.3164,144.68,144.63,6.9141]
[1720920112848,15.3164,144.68,144.59,26.9159]
[1720920113052,15.3164,144.68,144.6,1.38287753]
[1720920113433,15.3164,144.68,144.58,6.9161]
[1720920113633,15.3164,144.68,144.59,1.3829085]
[1720920114043,15.3164,144.68,144.59,8.2989085]
[1720920114240,15.3164,144.68,144.59,6.916]
[1720920115049,75.0,144.67,144.55,16.1457]
[1720920115253,75.0,144.67,144.55,6.9176]
[1720920115455,6.4645,144.66,144.56,6.9174]
[1720920115766,25.3164,144.65,144.55,6.9178]
[1720920116258,10.0,144.63,144.52,8.83409533]
[1720920116439,10.0,144.63,144.54,6.9184]
[1720920116637,10.0,144.63,144.53,6.9188]
[1720920116943,6.4645,144.62,144.53,6.9188]
[1720920117142,6.4645,144.62,144.54,6.9184]
[1720920118346,6.4645,144.62,144.53,6.9188]
[1720920118660,15.3164,144.61,144.53,6.9188]
[1720920119545,15.3164,144.61,144.51,6.9194]
[1720920119742,15.3164,144.61,144.48,24.87694701]
[1720920119961,6.4645,144.57,144.43,16.1457]
[1720920120150,10.0,144.55,144.45,6.9223]
[1720920120350,10.0,144.55,144.43,6.9236]
[1720920120552,45.0,144.54,144.44,6.9232]
[1720920121070,15.3164,144.53,144.44,6.9232]
[1720920121667,15.3164,144.53,144.42,22.6]
[1720920121668,15.3164,144.53,144.45,6.9227]
[1720920121869,15.3164,144.53,144.46,8.30644236]
[1720920122078,15.3164,144.53,144.46,1.38424236]
[1720920122282,15.3164,144.53,144.43,6.9233]
[1720920123188,15.3164,144.53,144.42,22.6]
[1720920123189,6.4645,144.52,144.42,22.6]
[1720920123354,6.4645,144.52,144.39,22.4632]
[1720920123355,65.0,144.51,144.39,20.84]
[1720920123663,6.4645,144.52,144.42,22.6]
[1720920123978,6.4645,144.52,144.44,6.9231]
[1720920124472,6.4645,144.52,144.45,1.38429087]
[1720920124656,6.4645,144.52,144.42,22.6]
[1720920124966,6.4645,144.52,144.43,8.30811596]
[1720920125147,6.4645,144.52,144.44,6.9232]
[1720920125462,6.4645,144.52,144.45,6.9227]
[1720920126277,6.4645,144.52,144.46,8.30649126]
[1720920126441,6.4645,144.52,144.44,6.9228]
[1720920126642,6.4645,144.52,144.45,1.38427022]
[1720920127451,6.4645,144.52,144.46,1.38426494]
[1720920127668,6.4645,144.52,144.43,42.2241185]
[1720920127855,6.4645,144.52,144.46,6.9222]
[1720920128056,6.4645,144.52,144.47,1.38412086]
[1720920128565,6.4645,144.52,144.45,6.9227]
[1720920128757,6.4645,144.52,144.46,1.38413817]
[1720920129469,6.4645,144.52,144.43,20.0]
[1720920129685,6.4645,144.52,144.43,26.9237]
[1720920130352,6.4645,144.52,144.45,6.9227]
[1720920130562,6.4645,144.52,144.43,20.0]
[1720920131369,6.4645,144.52,144.43,26.9234]
[1720920131558,6.4645,144.52,144.44,1.3843182]
[1720920131753,6.4645,144.52,144.48,6.921]
[1720920131964,6.4645,144.52,144.49,1.38392676]
[1720920132169,6.4645,144.52,144.49,8.30472676]
[1720920132473,6.4645,144.52,144.5,1.38387588]
[1720920132647,15.3164,144.53,144.48,6.9213]
[1720920133263,15.3164,144.53,144.46,20.84]
[1720920133463,15.3164,144.53,144.47,71.9217]
[1720920133767,15.3164,144.53,144.48,1.38398354]
[1720920134463,15.3164,144.53,144.48,1.38390776]
[1720920134873,15.3164,144.53,144.47,1.3839076]
[1720920135170,15.3164,144.53,144.45,22.6]
[1720920135362,15.3164,144.53,144.46,1.38422491]
[1720920136165,15.3164,144.53,144.47,6.9217]
[1720920136375,15.3164,144.53,144.48,1.38399127]
[1720920136576,15.3164,144.53,144.48,6.9212]
[1720920136753,15.3164,144.53,144.47,6.9217]
[1720920136953,15.3164,144.53,144.48,6.9213]
[1720920137154,15.3164,144.53,144.46,20.84]
[1720920137380,15.3164,144.53,144.47,66.38379525]
[1720920137595,6.4165,144.56,144.47,87.6]
[1720920137878,15.5954,144.57,144.54,6.9183]
[1720920138085,15.5954,144.57,144.55,6.9178]
[1720920138380,15.5954,144.57,144.5,43.44]
[1720920138556,15.5954,144.57,144.53,6.9186]
[1720920138756,15.5954,144.57,144.54,1.38341515]
[1720920138954,15.5954,144.57,144.52,1.3834262]
[1720920139392,15.5954,144.57,144.52,8.3023262]
[1720920140055,15.5954,144.57,144.54,6.9183]
[1720920140279,6.4165,144.6,144.55,1.38334038]
[1720920140491,6.4165,144.6,144.53,6.9189]
[1720920141477,6.4165,144.6,144.51,65.84]
[1720920141478,6.4165,144.6,144.54,8.30164413]
[1720920141680,6.4165,144.6,144.55,1.38324422]
[1720920141979,15.5954,144.61,144.56,6.9172]
[1720920142168,15.5954,144.61,144.57,1.38308911]
[1720920142485,15.5954,144.61,144.53,22.6]
[1720920142690,15.5954,144.61,144.53,29.5185]
[1720920142976,15.5954,144.61,144.54,51.918]
[1720920145772,15.5954,144.61,144.55,1.38318898]
[1720920146365,15.5954,144.61,144.57,6.9169]
[1720920146566,15.5954,144.61,144.58,1.38304106]
[1720920146778,15.5954,144.61,144.56,6.9174]
[1720920147171,15.5954,144.61,144.57,8.29992006]
[1720920147369,15.5954,144.61,144.58,1.38299608]
[1720920147962,15.5954,144.61,144.58,8.29949608]
[1720920148162,6.4165,144.64,144.59,1.38299138]
[1720920148362,6.4165,144.64,144.59,8.29899138]
[1720920148881,6.4165,144.64,144.59,1.38299138]
[1720920149666,6.4165,144.64,144.56,43.44]
[1720920149667,6.4165,144.64,144.6,8.29827115]
[1720920149894,6.4165,144.64,144.61,1.38277306]
[1720920150671,15.5954,144.65,144.61,1.38277306]
[1720920152781,6.3699,144.68,144.61,1.38277306]
[1720920152984,21.9653,144.68,144.6,45.0]
[1720920153800,31.9653,144.68,144.55,6.9177]
[1720920153960,20.0,144.67,144.55,6.9177]
[1720920154570,20.0,144.67,144.56,6.9174]
[1720920155370,20.0,144.67,144.57,45.0]
[1720920155565,70.5954,144.66,144.52,20.84]
[1720920155781,15.5954,144.63,144.53,23.98318866]
[1720920155990,15.5954,144.63,144.55,6.918]
[1720920156294,15.5954,144.63,144.56,1.38311374]
[1720920156669,15.5954,144.63,144.56,8.30061374]
[1720920157082,15.5954,144.63,144.56,1.38311374]
[1720920157387,15.5954,144.63,144.57,8.29984416]
[1720920157577,15.5954,144.63,144.53,43.44]
[1720920157779,15.5954,144.63,144.54,66.38312473]
[1720920158088,0.8473678,144.69,144.62,22.6]
[1720920158405,0.8473678,144.69,144.64,6.9133]
[1720920158708,0.8473678,144.69,144.65,1.38225905]
[1720920158881,0.8473678,144.69,144.68,6.9118]
[1720920159196,0.8473678,144.69,144.67,6.9121]
[1720920159585,0.8473678,144.69,144.68,1.38198879]
[1720920159772,0.8473678,144.69,144.66,21.38212996]
[1720920160372,0.8473678,144.69,144.66,1.38212996]
[1720920163981,0.8473678,144.69,144.67,22.6]
[1720920164183,0.8473678,144.69,144.68,1.3819861]
[1720920165274,0.8473678,144.69,144.67,1.38188639]
[1720920165476,0.8473678,144.69,144.6,29.1536]
[1720920165690,16.7792678,144.69,144.58,15.0472]
[1720920165889,16.7792678,144.69,144.59,22.6]
[1720920166385,16.7792678,144.69,144.59,43.44]
[1720920167087,16.7792678,144.69,144.6,20.0]
[1720920167396,16.7792678,144.69,144.57,20.84]
[1720920168082,16.7792678,144.69,144.55,15.3047]
[1720920168083,26.7792678,144.69,144.55,15.3047]
[1720920168288,6.3723,144.66,144.52,6.5536]
[1720920168513,6.3723,144.66,144.53,43.44]
[1720920168691,6.3723,144.66,144.56,6.9174]
[1720920169879,6.3723,144.66,144.57,8.29995593]
[1720920170090,6.3723,144.66,144.58,1.38305388]
[1720920170992,6.3723,144.66,144.57,6.9169]
[1720920171492,6.3723,144.66,144.58,8.29925481]
[1720920171693,6.3723,144.66,144.59,8.29889046]
[1720920171889,6.3723,144.66,144.6,1.38289177]
[1720920172897,6.3723,144.66,144.6,1.38289202]
[1720920173090,6.3723,144.66,144.59,51.9159]
[1720920173286,6.3723,144.66,144.58,6.9165]
[1720920173511,6.3723,144.66,144.59,1.38290423]
[1720920173691,6.3723,144.66,144.57,20.0]
[1720920173885,6.3723,144.66,144.58,1.38303134]
[1720920174088,6.3723,144.66,144.58,8.29953134]
[1720920174295,6.3723,144.66,144.59,6.916]
[1720920174510,6.3723,144.66,144.58,1.38303134]
[1720920174511,6.3723,144.66,144.6,1.3828845]
[1720920175204,6.3723,144.66,144.61,1.38291107]
[1720920175599,6.3723,144.66,144.61,8.29791107]
[1720920175910,6.3723,144.66,144.61,1.38291107]
[1720920176294,6.3723,144.66,144.61,8.29801107]
[1720920176599,6.3723,144.66,144.61,6.9151]
[1720920176907,6.3723,144.66,144.62,8.29712598]
[1720920177806,16.7792678,144.69,144.63,1.3825626]
[1720920178389,16.7792678,144.69,144.62,45.0]
[1720920178889,16.7792678,144.69,144.61,27.755]
[1720920178890,16.7792678,144.69,144.59,22.6]
[1720920179221,16.7792678,144.69,144.6,45.0]
[1720920179908,16.7792678,144.69,144.61,1.38256915]
[1720920180686,16.7792678,144.69,144.62,6.9143]
[1720920180912,16.7792678,144.69,144.63,1.38240779]
[1720920181291,16.7792678,144.69,144.6,45.0]
[1720920181491,16.7792678,144.69,144.61,1.38256843]
[1720920182299,16.7792678,144.69,144.59,22.6]
[1720920182808,16.7792678,144.69,144.59,29.516]
[1720920183009,16.7792678,144.69,144.6,46.38266482]
[1720920183310,16.7792678,144.69,144.6,1.38267439]
[1720920183505,15.196,144.66,144.52,2.49405693]
[1720920183815,15.196,144.66,144.56,6.9171]
[1720920184788,15.196,144.66,144.57,6.917]
[1720920185103,15.196,144.66,144.58,1.38297292]
[1720920185714,15.196,144.66,144.56,6.9173]
[1720920185907,15.196,144.66,144.58,1.3830398]
[1720920186111,15.196,144.66,144.56,6.9173]
[1720920186314,15.196,144.66,144.57,8.29979977]
[1720920186509,15.196,144.66,144.58,1.38292208]
[1720920188714,15.196,144.66,144.58,8.29942208]
[1720920189315,15.196,144.66,144.59,6.9158]
[1720920189500,15.196,144.66,144.6,1.38273274]
[1720920189703,15.196,144.66,144.61,1.3827333]
[1720920190437,15.196,144.66,144.59,1.38273317]
[1720920191531,15.196,144.66,144.59,46.38273317]
[1720920192123,15.196,144.66,144.59,1.38273317]
[1720920193334,15.196,144.66,144.56,6.9174]
[1720920193636,15.196,144.66,144.58,6.9164]
[1720920193809,15.196,144.66,144.59,1.38282566]
[1720920194225,15.196,144.66,144.6,6.9155]
[1720920194405,15.196,144.66,144.61,1.38267642]
[1720920194809,15.196,144.66,144.58,1.38274199]
[1720920195003,15.196,144.66,144.58,29.13894199]
[1720920195221,15.196,144.66,144.59,51.9159]
[1720920195518,15.196,144.66,144.58,1.38274199]
[1720920195519,15.196,144.66,144.6,1.38270059]
[1720920195719,15.196,144.66,144.59,1.38281216]
[1720920196318,15.196,144.66,144.59,46.38281216]
[1720920197809,15.196,144.66,144.59,51.916]
[1720920198538,15.196,144.66,144.6,1.38275204]
[1720920198831,0.8473678,144.69,144.61,1.38278672]
[1720920199037,0.8473678,144.69,144.63,6.914]
[1720920199334,0.8473678,144.69,144.65,6.9131]
[1720920199516,0.8473678,144.69,144.66,1.38218001]
[1720920199720,0.8473678,144.69,144.68,6.9118]
[1720920200036,0.8473678,144.69,144.68,96.73358379]
[1720920200240,0.8473678,144.69,144.68,116.73358379]
[1720920200543,16.1814,144.78,144.73,6.9093]
[1720920200707,16.1814,144.78,144.74,46.38136782]
[1720920201034,0.8473678,144.83,144.74,65.84]
[1720920201035,7.1541678,144.83,144.74,65.84]
[1720920201349,7.1541678,144.83,144.75,1.38115551]
[1720920202230,7.1541678,144.83,144.74,88.44]
[1720920202542,0.8473678,144.83,144.76,20.84]
[1720920202746,0.8473678,144.83,144.77,68.98076965]
[1720920203338,0.8473678,144.83,144.77,46.38076965]
[1720920203569,0.8473678,144.83,144.77,1.38076965]
[1720920204815,0.8473678,144.83,144.78,1.38084095]
[1720920205718,22.4882,144.82,144.72,1.38125796]
[1720920206921,22.4882,144.82,144.73,1.38143229]
[1720920207231,22.4882,144.82,144.74,1.38143083]
[1720920207430,22.4882,144.82,144.7,1.38143019]
[1720920207644,22.4882,144.82,144.69,20.84]
[1720920207941,22.4882,144.82,144.71,20.84]
[1720920208157,22.4882,144.82,144.73,20.84]
[1720920208617,22.4882,144.82,144.74,45.0]
[1720920209015,22.4882,144.82,144.75,1.38120432]
[1720920209943,22.4882,144.82,144.74,45.0]
[1720920210328,20.0,144.81,144.69,20.84]
[1720920210527,55.0,144.8,144.66,20.84]
[1720920210733,55.0,144.8,144.67,1.38180941]
[1720920210932,20.0,144.79,144.68,1.38180504]
[1720920211127,6.3068,144.76,144.68,1.38180504]
[1720920211327,6.3068,144.76,144.64,25.3]
[1720920211541,16.1814,144.75,144.63,20.84]
[1720920211724,16.1814,144.75,144.64,1.3821579]
[1720920211923,16.1814,144.75,144.65,1.38214329]
[1720920212139,30.0,144.73,144.6,33.02292047]
[1720920212343,30.0,144.73,144.56,15.5775]
[1720920212519,30.0,144.73,144.57,20.84]
[1720920213149,30.0,144.73,144.58,1.38233671]
[1720920213443,30.0,144.73,144.59,20.84]
[1720920213626,30.0,144.73,144.61,20.84]
[1720920213953,30.0,144.73,144.62,42.22225068]
[1720920214163,30.0,144.73,144.62,87.22225068]
[1720920214746,30.0,144.73,144.63,1.38224819]
[1720920215945,30.0,144.73,144.62,85.84]
[1720920216150,30.0,144.74,144.62,85.84]
[1720920216451,30.0,144.74,144.63,1.38221309]
[1720920216653,30.0,144.74,144.62,85.84]
[1720920216832,30.0,144.74,144.63,1.38203042]
[1720920217029,30.0,144.74,144.62,85.84]
[1720920217439,30.0,144.74,144.63,1.38207954]
[1720920218247,30.0,144.72,144.63,1.38207954]
[1720920218632,6.3642,144.71,144.59,20.0]
[1720920219037,15.8344,144.7,144.53,259.1]
[1720920219242,15.8344,144.7,144.54,25.3]
[1720920219243,20.0,144.69,144.54,25.3]
[1720920219537,50.0,144.69,144.55,20.84]
[1720920219744,50.0,144.69,144.61,6.9146]
[1720920220144,50.0,144.69,144.6,6.9155]
[1720920221251,50.0,144.69,144.59,6.916]
[1720920222961,50.0,144.69,144.58,6.9165]
[1720920223160,50.0,144.69,144.59,45.0]
[1720920223656,50.0,144.69,144.6,1.38274544]
[1720920223836,20.0,144.69,144.63,6.9139]
[1720920224238,15.8344,144.7,144.63,6.9139]
[1720920224551,15.8344,144.7,144.64,8.2958375]
[1720920224738,15.8344,144.7,144.65,1.38230137]
[1720920224944,15.8344,144.7,144.63,6.914]
[1720920226458,15.8344,144.7,144.57,46.14]
[1720920226755,15.8344,144.7,144.59,20.84]
[1720920226935,15.8344,144.7,144.6,65.0]
[1720920227138,15.8344,144.7,144.61,45.0]
[1720920227640,15.8344,144.7,144.6,40.84]
[1720920227856,15.8344,144.7,144.61,1.38251411]
[1720920228033,15.8344,144.7,144.57,25.3]
[1720920228238,15.8344,144.7,144.54,7.72292047]
[1720920228239,20.0,144.69,144.58,1.38234144]
[1720920228542,15.8344,144.7,144.55,20.84]
[1720920228742,15.8344,144.7,144.58,20.84]
[1720920228946,15.8344,144.7,144.59,1.38239212]
[1720920229159,15.8344,144.7,144.58,20.84]
[1720920229361,30.0,144.68,144.59,1.38263574]
[1720920229741,30.0,144.68,144.59,42.22263574]
[1720920230955,30.0,144.68,144.59,40.84]
[1720920231168,30.0,144.68,144.6,45.0]
[1720920231381,30.0,144.68,144.61,1.38275564]
[1720920231662,30.0,144.68,144.57,1.38261953]
[1720920231842,30.0,144.68,144.58,22.22260961]
[1720920232043,30.0,144.68,144.61,6.9147]
[1720920232271,30.0,144.68,144.62,1.38261885]
[1720920233069,30.0,144.68,144.63,22.22260259]
[1720920233246,30.0,144.68,144.66,6.9126]
[1720920233440,30.0,144.68,144.67,1.38228028]
[1720920233847,30.0,144.68,144.67,8.29448028]
[1720920234048,6.3642,144.71,144.67,45.0]
[1720920234258,6.3642,144.71,144.68,46.38189286]
[1720920234443,6.3642,144.71,144.7,6.9108]
[1720920234759,6.3642,144.71,144.69,6.9111]
[1720920235152,15.8344,144.74,144.7,1.3818935]
[1720920235357,15.8344,144.74,144.71,1.38179113]
[1720920236368,15.8344,144.74,144.69,1.38179445]
[1720920240249,15.8344,144.74,144.68,45.0]
[1720920240467,15.8344,144.74,144.64,20.84]
[1720920240674,15.8344,144.74,144.66,20.84]
[1720920240975,15.8344,144.74,144.67,66.38179559]
[1720920241168,15.8344,144.74,144.68,1.38190956]
[1720920241749,15.8344,144.74,144.67,65.0]
[1720920241949,15.8344,144.74,144.68,1.38196979]
[1720920244459,15.8344,144.74,144.67,65.0]
[1720920245261,15.8344,144.74,144.68,1.38187238]
[1720920245972,15.8344,144.74,144.67,65.0]
[1720920246974,15.8344,144.74,144.64,22.52]
[1720920247373,15.8344,144.74,144.65,1.38212402]
[1720920247953,15.8344,144.74,144.66,1.38206718]
[1720920249864,15.8344,144.74,144.65,45.0]
[1720920250273,15.8344,144.74,144.61,22.52]
[1720920250457,15.8344,144.74,144.62,20.0]
[1720920250859,38.3544,144.74,144.62,20.0]
[1720920251276,38.3544,144.74,144.63,1.38239667]
[1720920251860,38.3544,144.74,144.64,1.38234434]
[1720920252160,38.3544,144.74,144.62,40.84]
[1720920252161,15.8344,144.74,144.65,1.38225057]
[1720920252478,15.8344,144.74,144.64,40.84]
[1720920252869,15.8344,144.74,144.65,46.38197945]
[1720920253556,15.8344,144.74,144.65,45.0]
[1720920253765,15.8344,144.74,144.66,1.38223667]
[1720920253958,15.8344,144.74,144.65,65.84]
[1720920255074,15.8344,144.74,144.66,1.38192302]
[1720920258182,15.8344,144.74,144.65,65.84]
[1720920258378,15.8344,144.74,144.65,45.0]
[1720920258599,15.8344,144.74,144.64,20.0]
[1720920259479,15.8344,144.74,144.65,1.38219417]
[1720920260880,15.8344,144.74,144.65,46.38219417]
[1720920262594,15.8344,144.74,144.65,45.0]
[1720920262787,15.8344,144.74,144.66,1.38209893]
[1720920263475,15.8344,144.74,144.65,45.0]
[1720920263985,15.8344,144.74,144.65,65.84]
[1720920264771,15.8344,144.74,144.66,1.38195189]
[1720920264980,15.8344,144.74,144.64,20.0]
[1720920265180,15.8344,144.74,144.65,1.38213399]
[1720920266885,15.8344,144.74,144.65,67.22213399]
[1720920267701,15.8344,144.74,144.65,65.84]
[1720920267902,15.8344,144.74,144.66,1.38188622]
[1720920268079,15.8344,144.74,144.65,45.0]
[1720920268477,15.8344,144.74,144.66,1.38207968]
[1720920268691,15.8344,144.74,144.65,45.0]
[1720920268903,15.8344,144.74,144.65,65.84]
[1720920269417,15.8344,144.74,144.66,1.38195612]
[1720920269776,15.8344,144.74,144.65,45.0]
[1720920270399,15.8344,144.74,144.66,1.38211933]
[1720920270780,15.8344,144.74,144.65,45.0]
[1720920271179,15.8344,144.74,144.66,1.38213878]
[1720920271391,6.4119,144.73,144.61,22.52]
[1720920271574,6.4119,144.73,144.62,45.0]
[1720920272393,16.2432,144.72,144.62,45.0]
[1720920272592,16.2432,144.72,144.61,45.0]
[1720920272910,16.2432,144.72,144.6,20.84]
[1720920273201,16.2432,144.72,144.61,1.38244564]
[1720920274205,16.2432,144.72,144.61,46.38244564]
[1720920275080,6.4119,144.71,144.61,46.38244564]
[1720920277011,16.2432,144.7,144.61,45.0]
[1720920278019,16.2432,144.7,144.62,1.38245535]
[1720920284703,16.2432,144.7,144.61,45.0]
[1720920284907,16.2432,144.7,144.56,8.52235091]
[1720920285228,16.2432,144.7,144.57,20.0]
[1720920285799,16.2432,144.7,144.57,40.81]
[1720920286119,16.5945,144.68,144.57,40.81]
[1720920286322,16.5945,144.68,144.58,1.38266564]
[1720920286505,16.5945,144.68,144.57,20.0]
[1720920286702,16.5945,144.68,144.56,20.0]
[1720920286920,16.5945,144.68,144.6,6.9155]
[1720920288494,16.5945,144.68,144.61,1.38280155]
[1720920288701,11.28,144.65,144.61,1.38280155]
[1720920290230,11.28,144.65,144.61,12.66280155]
[1720920290528,16.5945,144.68,144.61,19.57770155]
[1720920290741,11.28,144.65,144.62,1.38265522]
[1720920292523,11.28,144.65,144.61,11.28]
[1720920292824,11.28,144.65,144.6,11.28]
[1720920293924,11.28,144.65,144.58,6.9164]
[1720920294115,16.5945,144.68,144.64,11.28]
[1720920294308,16.5945,144.68,144.66,11.28]
[1720920294509,16.5945,144.68,144.67,12.66225378]
[1720920295104,10.0,144.78,144.67,12.66225378]
[1720920295105,2.45517004,144.75,144.67,19.57445378]
[1720920295299,11.28,144.73,144.68,12.66213968]
[1720920296006,11.28,144.73,144.68,11.28]
[1720920296207,11.28,144.72,144.68,11.28]
[1720920296406,11.28,144.7,144.63,1.38213991]
[1720920296608,22.8788,144.71,144.63,1.38213991]
[1720920297305,22.8788,144.71,144.62,45.0]
[1720920297911,22.8788,144.71,144.63,1.38242719]
[1720920299022,22.8788,144.71,144.63,21.38242719]
[1720920299227,22.8788,144.71,144.64,45.0]
[1720920299524,22.8788,144.71,144.65,1.38220587]
[1720920300507,22.8788,144.71,144.66,1.38237215]
[1720920300712,22.8788,144.71,144.63,1.38228427]
[1720920300924,22.8788,144.71,144.63,46.38228427]
[1720920302215,22.8788,144.71,144.64,20.81]
[1720920302417,22.8788,144.71,144.65,46.38209027]
[1720920303024,22.8788,144.71,144.62,40.81]
[1720920303225,22.8788,144.71,144.63,46.38228621]
[1720920303426,22.8788,144.71,144.64,20.0]
[1720920303733,22.8788,144.71,144.65,46.38218667]
[1720920304237,22.8788,144.71,144.61,22.54]
[1720920304541,22.8788,144.71,144.62,46.38235321]
[1720920305422,22.8788,144.71,144.63,20.81]
[1720920305624,16.5945,144.71,144.64,67.19205267]
[1720920305820,22.2709,144.75,144.65,1.38205225]
[1720920306235,22.2709,144.75,144.66,43.35]
[1720920306443,22.2709,144.75,144.67,42.1917494]
[1720920306739,22.2709,144.75,144.68,46.38180405]
[1720920310130,16.036,144.75,144.68,46.38180405]
[1720920310442,6.2349,144.78,144.68,67.19180405]
[1720920310735,6.2349,144.78,144.68,46.38180405]
[1720920310930,6.2349,144.78,144.68,45.0]
[1720920312325,6.2349,144.78,144.69,1.38180008]